[Event "*** Titled Tuesday Blitz"]
[Site "Chess.com"]
[Date "2021.04.27"]
[Round "3"]
[White "chess94cu"]
[Black "Msb2"]
[Result "1/2-1/2"]
[WhiteElo "2581"]
[BlackElo "2884"]
[TimeControl "180+1"]
[EndTime "10:30:34 PDT"]
[Termination "Game drawn by stalemate"]

1. e4 {[%clk 0:03:00.9]} 1... c6 {[%clk 0:02:59.8]} 2. d4 {[%clk 0:02:59.7]}
2... d5 {[%clk 0:03:00.2]} 3. Nd2 {[%clk 0:03:00.4]} 3... dxe4 {[%clk
0:03:00.5]} 4. Nxe4 {[%clk 0:03:01.3]} 4... Nf6 {[%clk 0:03:01.4]} 5. Nxf6+
{[%clk 0:03:01.4]} 5... exf6 {[%clk 0:03:02.3]} 6. c3 {[%clk 0:03:01.1]} 6...
Bf5 {[%clk 0:03:01.5]} 7. Ne2 {[%clk 0:02:31]} 7... Bd6 {[%clk 0:02:58.7]} 8.
Ng3 {[%clk 0:02:31.4]} 8... Bg6 {[%clk 0:02:59.3]} 9. Bc4 {[%clk 0:02:24.5]}
9... O-O {[%clk 0:02:58]} 10. O-O {[%clk 0:02:25.1]} 10... Nd7 {[%clk
0:02:58.5]} 11. Qf3 {[%clk 0:02:06.2]} 11... Qc7 {[%clk 0:02:46.6]} 12. Bd2
{[%clk 0:02:00.3]} 12... c5 {[%clk 0:02:39.2]} 13. Rac1 {[%clk 0:01:53.3]} 13...
Qb6 {[%clk 0:02:28.7]} 14. Nf5 {[%clk 0:01:41.2]} 14... cxd4 {[%clk 0:01:53.3]}
15. cxd4 {[%clk 0:01:16]} 15... Rfd8 {[%clk 0:01:11.8]} 16. Bc3 {[%clk
0:00:59.2]} 16... Bf8 {[%clk 0:01:07.2]} 17. Rfe1 {[%clk 0:00:59.2]} 17... Rac8
{[%clk 0:01:00.5]} 18. Bb3 {[%clk 0:00:57.6]} 18... Re8 {[%clk 0:01:00.6]} 19.
h4 {[%clk 0:00:54.6]} 19... h5 {[%clk 0:00:54.8]} 20. Ng3 {[%clk 0:00:49.6]}
20... Qb5 {[%clk 0:00:50.2]} 21. Re3 {[%clk 0:00:42.8]} 21... Rxe3 {[%clk
0:00:47.7]} 22. Qxe3 {[%clk 0:00:43.7]} 22... Nb6 {[%clk 0:00:46.4]} 23. Qf3
{[%clk 0:00:42]} 23... Nc4 {[%clk 0:00:39.3]} 24. Re1 {[%clk 0:00:40.9]} 24...
Nd6 {[%clk 0:00:35.2]} 25. Qf4 {[%clk 0:00:28.2]} 25... a5 {[%clk 0:00:31.5]}
26. Bd1 {[%clk 0:00:24.7]} 26... a4 {[%clk 0:00:28.1]} 27. a3 {[%clk 0:00:24.3]}
27... Nc4 {[%clk 0:00:26.2]} 28. Be2 {[%clk 0:00:24.3]} 28... Qd5 {[%clk
0:00:18.2]} 29. Bf3 {[%clk 0:00:23.5]} 29... Qd7 {[%clk 0:00:18.8]} 30. Nxh5
{[%clk 0:00:20]} 30... Nxa3 {[%clk 0:00:18.9]} 31. Ng3 {[%clk 0:00:19.1]} 31...
Nb5 {[%clk 0:00:18.6]} 32. h5 {[%clk 0:00:17.9]} 32... Bh7 {[%clk 0:00:18.2]}
33. Bg4 {[%clk 0:00:18.5]} 33... Qc7 {[%clk 0:00:16.8]} 34. Qf3 {[%clk
0:00:13.1]} 34... Rd8 {[%clk 0:00:12.5]} 35. h6 {[%clk 0:00:12.8]} 35... gxh6
{[%clk 0:00:09.4]} 36. Nf5 {[%clk 0:00:11]} 36... Bg6 {[%clk 0:00:08.7]} 37. Bh5
{[%clk 0:00:10.1]} 37... a3 {[%clk 0:00:07.6]} 38. Nh4 {[%clk 0:00:08.7]} 38...
a2 {[%clk 0:00:07]} 39. Bxg6 {[%clk 0:00:07.6]} 39... fxg6 {[%clk 0:00:07.9]}
40. Nxg6 {[%clk 0:00:07.6]} 40... Qf7 {[%clk 0:00:07.3]} 41. Nf4 {[%clk
0:00:07]} 41... Re8 {[%clk 0:00:07.1]} 42. Ra1 {[%clk 0:00:05.6]} 42... Kh8
{[%clk 0:00:06.1]} 43. Nh5 {[%clk 0:00:05.6]} 43... Bg7 {[%clk 0:00:04.6]} 44.
d5 {[%clk 0:00:05.7]} 44... Nxc3 {[%clk 0:00:04.5]} 45. bxc3 {[%clk 0:00:06.6]}
45... f5 {[%clk 0:00:03.7]} 46. Rxa2 {[%clk 0:00:05.5]} 46... Be5 {[%clk
0:00:03]} 47. g3 {[%clk 0:00:05.3]} 47... Bd6 {[%clk 0:00:02.9]} 48. Rb2 {[%clk
0:00:04.3]} 48... Rg8 {[%clk 0:00:02.2]} 49. Kg2 {[%clk 0:00:03.4]} 49... f4
{[%clk 0:00:02.3]} 50. g4 {[%clk 0:00:03.6]} 50... Qxh5 {[%clk 0:00:02.2]} 51.
Rxb7 {[%clk 0:00:02.5]} 51... Qxg4+ {[%clk 0:00:02.5]} 52. Qxg4 {[%clk
0:00:01.9]} 52... Rxg4+ {[%clk 0:00:03.4]} 53. Kf3 {[%clk 0:00:02.5]} 53... Rh4
{[%clk 0:00:04]} 54. Rd7 {[%clk 0:00:02.8]} 54... Be5 {[%clk 0:00:03.7]} 55. c4
{[%clk 0:00:03.4]} 55... Kg8 {[%clk 0:00:04.1]} 56. c5 {[%clk 0:00:03.1]} 56...
Kf8 {[%clk 0:00:04.6]} 57. c6 {[%clk 0:00:03.2]} 57... Ke8 {[%clk 0:00:04.7]}
58. d6 {[%clk 0:00:03.4]} 58... Rh1 {[%clk 0:00:04.3]} 59. Re7+ {[%clk
0:00:03.3]} 59... Kd8 {[%clk 0:00:04.4]} 60. Rxe5 {[%clk 0:00:04.2]} 60... Rd1
{[%clk 0:00:02.9]} 61. Re6 {[%clk 0:00:03.8]} 61... Rd4 {[%clk 0:00:01.9]} 62.
Rxh6 {[%clk 0:00:02.7]} 62... Ke8 {[%clk 0:00:02.8]} 63. Rf6 {[%clk 0:00:02.7]}
63... Rd3+ {[%clk 0:00:03.7]} 64. Ke4 {[%clk 0:00:01.5]} 64... Rc3 {[%clk
0:00:04.6]} 65. Ke5 {[%clk 0:00:01.8]} 65... Rc5+ {[%clk 0:00:04.4]} 66. Ke6
{[%clk 0:00:02.7]} 66... Rxc6 {[%clk 0:00:05.3]} 67. Rh6 {[%clk 0:00:02.6]}
67... Kf8 {[%clk 0:00:05.9]} 68. Rh8+ {[%clk 0:00:02.6]} 68... Kg7 {[%clk
0:00:06.8]} 69. Rd8 {[%clk 0:00:03.3]} 69... Rc1 {[%clk 0:00:07.6]} 70. Rd7+
{[%clk 0:00:04.2]} 70... Kg6 {[%clk 0:00:02.7]} 71. Rc7 {[%clk 0:00:05.1]} 71...
Re1+ {[%clk 0:00:02.5]} 72. Kd5 {[%clk 0:00:05.1]} 72... Re2 {[%clk 0:00:03.4]}
73. d7 {[%clk 0:00:04.7]} 73... Rxf2 {[%clk 0:00:02.4]} 74. Rc6+ {[%clk
0:00:05.2]} 74... Kf5 {[%clk 0:00:00.9]} 75. Rd6 {[%clk 0:00:06.1]} 75... Rd2+
{[%clk 0:00:01.2]} 76. Kc6 {[%clk 0:00:06.3]} 76... Rc2+ {[%clk 0:00:02.1]} 77.
Kb7 {[%clk 0:00:06.4]} 77... f3 {[%clk 0:00:03]} 78. d8=Q {[%clk 0:00:05.6]}
78... Rb2+ {[%clk 0:00:03.9]} 79. Kc7 {[%clk 0:00:04.8]} 79... Kg4 {[%clk
0:00:04.8]} 80. Qg8+ {[%clk 0:00:04.2]} 80... Kf4 {[%clk 0:00:04.8]} 81. Qf7+
{[%clk 0:00:04.1]} 81... Ke3 {[%clk 0:00:05.7]} 82. Qe6+ {[%clk 0:00:04]} 82...
Kf2 {[%clk 0:00:06.3]} 83. Qe5 {[%clk 0:00:04.2]} 83... Re2 {[%clk 0:00:07.1]}
84. Qf4 {[%clk 0:00:03.3]} 84... Rc2+ {[%clk 0:00:06.8]} 85. Kd7 {[%clk
0:00:02.4]} 85... Ke2 {[%clk 0:00:07.7]} 86. Qe4+ {[%clk 0:00:02]} 86... Kf1
{[%clk 0:00:07.7]} 87. Qxc2 {[%clk 0:00:02]} 87... f2 {[%clk 0:00:08.6]} 88.
Qd1+ {[%clk 0:00:02]} 88... Kg2 {[%clk 0:00:09.5]} 89. Rg6+ {[%clk 0:00:01.9]}
89... Kh2 {[%clk 0:00:10.2]} 90. Rf6 {[%clk 0:00:02.8]} 90... Kg3 {[%clk
0:00:11.1]} 91. Qe2 {[%clk 0:00:03.1]} 91... Kh4 {[%clk 0:00:12]} 92. Qf1 {[%clk
0:00:03.8]} 92... Kg5 {[%clk 0:00:12.9]} 93. Qxf2 {[%clk 0:00:04.4]} 93... Kh5
{[%clk 0:00:13.4]} 94. Qf4 {[%clk 0:00:05.2]} 1/2-1/2

[Event "*** Titled Tuesday Blitz"]
[Site "Chess.com"]
[Date "2021.04.27"]
[Round "3"]
[White "pavelalexandru07"]
[Black "Harry_Rakkel"]
[Result "0-1"]
[WhiteElo "2351"]
[BlackElo "2582"]
[TimeControl "180+1"]
[EndTime "10:30:35 PDT"]
[Termination "Harry_Rakkel won by resignation"]

1. e4 {[%clk 0:02:59.9]} 1... c5 {[%clk 0:02:59.2]} 2. Nf3 {[%clk 0:02:57.7]}
2... e6 {[%clk 0:02:59]} 3. d4 {[%clk 0:02:57.7]} 3... cxd4 {[%clk 0:02:59]} 4.
Nxd4 {[%clk 0:02:58.4]} 4... a6 {[%clk 0:02:58.4]} 5. c4 {[%clk 0:02:56.6]} 5...
Nf6 {[%clk 0:02:56.9]} 6. Nc3 {[%clk 0:02:56.4]} 6... d6 {[%clk 0:02:56.7]} 7.
Be3 {[%clk 0:02:53.8]} 7... Be7 {[%clk 0:02:55.8]} 8. Be2 {[%clk 0:02:52.4]}
8... O-O {[%clk 0:02:55.4]} 9. O-O {[%clk 0:02:52.5]} 9... b6 {[%clk 0:02:55]}
10. Qd2 {[%clk 0:02:48.7]} 10... Bb7 {[%clk 0:02:54.4]} 11. f3 {[%clk
0:02:48.8]} 11... Nbd7 {[%clk 0:02:53.9]} 12. a4 {[%clk 0:02:39.9]} 12... Qc7
{[%clk 0:02:49.9]} 13. a5 {[%clk 0:02:38]} 13... bxa5 {[%clk 0:02:48.4]} 14. Nb3
{[%clk 0:02:37.9]} 14... Rab8 {[%clk 0:02:47.2]} 15. Nxa5 {[%clk 0:02:34.6]}
15... Ba8 {[%clk 0:02:46.2]} 16. Rfc1 {[%clk 0:02:10.9]} 16... Rfc8 {[%clk
0:02:45.3]} 17. b4 {[%clk 0:02:09.3]} 17... Ne5 {[%clk 0:02:29.6]} 18. c5 {[%clk
0:01:45.1]} 18... Rxb4 {[%clk 0:01:58.5]} 19. Nb5 {[%clk 0:01:36.2]} 19... Qd8
{[%clk 0:00:54.4]} 20. Qxb4 {[%clk 0:01:16.1]} 20... axb5 {[%clk 0:00:48.8]} 21.
cxd6 {[%clk 0:01:02.8]} 21... Rxc1+ {[%clk 0:00:47.8]} 22. Rxc1 {[%clk
0:01:02.9]} 22... Bxd6 {[%clk 0:00:48.1]} 23. Qxb5 {[%clk 0:01:03.4]} 23... h5
{[%clk 0:00:37]} 24. Nb7 {[%clk 0:00:51.1]} 24... Bxb7 {[%clk 0:00:35.7]} 25.
Qxb7 {[%clk 0:00:52]} 25... Kh7 {[%clk 0:00:34.7]} 26. Rd1 {[%clk 0:00:51.7]}
26... Qa5 {[%clk 0:00:31.2]} 27. Qb6 {[%clk 0:00:43.2]} 27... Qa2 {[%clk
0:00:25]} 28. Rd2 {[%clk 0:00:27.5]} 28... Qa1+ {[%clk 0:00:17.1]} 29. Rd1
{[%clk 0:00:27.9]} 29... Qa2 {[%clk 0:00:17.1]} 30. Qxd6 {[%clk 0:00:28]} 30...
Qxe2 {[%clk 0:00:16.4]} 31. Qd2 {[%clk 0:00:27.7]} 31... Qb5 {[%clk 0:00:14.9]}
32. Bd4 {[%clk 0:00:27.5]} 32... Ng6 {[%clk 0:00:08.3]} 33. Bxf6 {[%clk
0:00:26.7]} 33... gxf6 {[%clk 0:00:09.2]} 34. Qc3 {[%clk 0:00:23.7]} 34... Kg7
{[%clk 0:00:08]} 35. Qd2 {[%clk 0:00:22.8]} 35... h4 {[%clk 0:00:07.9]} 36. Qf2
{[%clk 0:00:22.2]} 36... Qg5 {[%clk 0:00:07.2]} 37. Kh1 {[%clk 0:00:17.2]} 37...
Nf4 {[%clk 0:00:07.2]} 38. Qd2 {[%clk 0:00:15.5]} 38... e5 {[%clk 0:00:06.5]}
39. Rg1 {[%clk 0:00:14.4]} 39... Qh5 {[%clk 0:00:06.8]} 40. Qf2 {[%clk
0:00:13.4]} 40... Kh7 {[%clk 0:00:06.7]} 41. Qe3 {[%clk 0:00:12.5]} 41... Kh8
{[%clk 0:00:03.8]} 42. Qb6 {[%clk 0:00:12.2]} 42... Kg7 {[%clk 0:00:03.6]} 43.
Qe3 {[%clk 0:00:12]} 43... Ng6 {[%clk 0:00:03.3]} 44. Qf2 {[%clk 0:00:10.8]}
44... Qh8 {[%clk 0:00:03.4]} 45. Rd1 {[%clk 0:00:10.7]} 45... Qh5 {[%clk
0:00:03.5]} 46. Kg1 {[%clk 0:00:10.9]} 46... Qg5 {[%clk 0:00:03.8]} 47. Kf1
{[%clk 0:00:11]} 47... Nf4 {[%clk 0:00:03.6]} 48. g3 {[%clk 0:00:10.8]} 48...
Ng6 {[%clk 0:00:03.6]} 49. Rd2 {[%clk 0:00:08.2]} 49... h3 {[%clk 0:00:03.4]}
50. Ke2 {[%clk 0:00:06.4]} 50... Qh6 {[%clk 0:00:03.7]} 51. Kf1 {[%clk
0:00:06.5]} 51... Qh8 {[%clk 0:00:03.9]} 52. Ke2 {[%clk 0:00:06.7]} 52... Qa8
{[%clk 0:00:04.4]} 53. Kf1 {[%clk 0:00:06.9]} 53... Qa1+ {[%clk 0:00:04.5]} 54.
Qe1 {[%clk 0:00:07.2]} 54... Qa6+ {[%clk 0:00:05]} 55. Qe2 {[%clk 0:00:07.5]}
55... Qb6 {[%clk 0:00:05.2]} 56. Rd3 {[%clk 0:00:07]} 56... Qb1+ {[%clk
0:00:05.2]} 57. Qd1 {[%clk 0:00:05.8]} 57... Qb6 {[%clk 0:00:06.1]} 58. Ke2
{[%clk 0:00:05.8]} 58... Qc5 {[%clk 0:00:05.2]} 59. Kd2 {[%clk 0:00:05.8]} 59...
Qf2+ {[%clk 0:00:04.8]} 60. Qe2 {[%clk 0:00:05.9]} 60... Qc5 {[%clk 0:00:05.7]}
61. Kd1 {[%clk 0:00:05.9]} 61... Qg1+ {[%clk 0:00:05.3]} 62. Kc2 {[%clk
0:00:05.8]} 62... Qh1 {[%clk 0:00:05.3]} 63. Rd2 {[%clk 0:00:05.8]} 63... Qa1
{[%clk 0:00:04.9]} 64. Kd3 {[%clk 0:00:05.9]} 64... Qb1+ {[%clk 0:00:04.8]} 65.
Kc3 {[%clk 0:00:06.2]} 65... Ne7 {[%clk 0:00:04.4]} 66. Qc4 {[%clk 0:00:05.3]}
66... Ng6 {[%clk 0:00:03.6]} 67. Rc2 {[%clk 0:00:04.1]} 67... Qe1+ {[%clk
0:00:03.5]} 68. Kb3 {[%clk 0:00:04]} 68... Qg1 {[%clk 0:00:03.3]} 69. Qc6 {[%clk
0:00:03.2]} 69... Qb1+ {[%clk 0:00:03.4]} 70. Kc3 {[%clk 0:00:03.3]} 70... Qe1+
{[%clk 0:00:03.6]} 71. Kb3 {[%clk 0:00:03.7]} 71... Qb1+ {[%clk 0:00:03.6]} 72.
Kc3 {[%clk 0:00:03.4]} 72... Qa1+ {[%clk 0:00:04.5]} 73. Kd3 {[%clk 0:00:03.7]}
73... Qf1+ {[%clk 0:00:03.9]} 74. Kd2 {[%clk 0:00:03.5]} 74... Qxf3 {[%clk
0:00:04]} 75. Qd5 {[%clk 0:00:03.3]} 75... Qg2+ {[%clk 0:00:03.9]} 76. Kc3
{[%clk 0:00:03.6]} 76... Qg1 {[%clk 0:00:03.7]} 77. Kb2 {[%clk 0:00:03.4]} 77...
Qb6+ {[%clk 0:00:03.3]} 78. Kc1 {[%clk 0:00:03.4]} 78... Qe3+ {[%clk 0:00:03.4]}
79. Kb2 {[%clk 0:00:03.9]} 79... Ne7 {[%clk 0:00:03.6]} 80. Qb7 {[%clk
0:00:03.5]} 80... Qd4+ {[%clk 0:00:03.5]} 81. Kb1 {[%clk 0:00:03.4]} 81... Ng6
{[%clk 0:00:03.9]} 82. Qd5 {[%clk 0:00:03.2]} 82... Qb4+ {[%clk 0:00:03.6]} 83.
Kc1 {[%clk 0:00:03.5]} 83... Qe1+ {[%clk 0:00:03.6]} 84. Kb2 {[%clk 0:00:04]}
84... Ne7 {[%clk 0:00:04.3]} 85. Qb7 {[%clk 0:00:03.7]} 85... Ng6 {[%clk
0:00:04]} 86. Qd5 {[%clk 0:00:04.1]} 86... Qg1 {[%clk 0:00:04.2]} 87. Rc7 {[%clk
0:00:03.7]} 87... Qb6+ {[%clk 0:00:04]} 88. Ka1 {[%clk 0:00:02.2]} 88... Qxc7
{[%clk 0:00:04.3]} 89. Ka2 {[%clk 0:00:02.8]} 89... Qa7+ {[%clk 0:00:04.4]} 90.
Kb3 {[%clk 0:00:03.2]} 90... Qe3+ {[%clk 0:00:04.4]} 91. Ka4 {[%clk 0:00:03.5]}
91... Qf2 {[%clk 0:00:04.1]} 92. Kb5 {[%clk 0:00:03.9]} 92... Qxh2 {[%clk
0:00:04.3]} 0-1

[Event "*** Titled Tuesday Blitz"]
[Site "Chess.com"]
[Date "2021.04.27"]
[Round "3"]
[White "TokChess"]
[Black "klimkoj"]
[Result "1/2-1/2"]
[WhiteElo "2408"]
[BlackElo "2605"]
[TimeControl "180+1"]
[EndTime "10:30:39 PDT"]
[Termination "Game drawn - insufficient material"]

1. e4 {[%clk 0:03:00.9]} 1... c5 {[%clk 0:03:00.1]} 2. b3 {[%clk 0:02:58.5]}
2... Nc6 {[%clk 0:02:54.4]} 3. Bb2 {[%clk 0:02:58.5]} 3... e5 {[%clk 0:02:54.4]}
4. Nf3 {[%clk 0:02:57.7]} 4... d6 {[%clk 0:02:46.6]} 5. Nc3 {[%clk 0:02:55.9]}
5... Nf6 {[%clk 0:02:46.8]} 6. Bc4 {[%clk 0:02:55.4]} 6... Be7 {[%clk
0:02:46.6]} 7. h3 {[%clk 0:02:54.9]} 7... O-O {[%clk 0:02:46.9]} 8. a4 {[%clk
0:02:54.2]} 8... Nd4 {[%clk 0:02:35.8]} 9. Nd5 {[%clk 0:02:52.5]} 9... Nxe4
{[%clk 0:02:23.9]} 10. O-O {[%clk 0:02:43.1]} 10... Nf6 {[%clk 0:02:22.2]} 11.
Nxe7+ {[%clk 0:02:42.3]} 11... Qxe7 {[%clk 0:02:23.1]} 12. Re1 {[%clk
0:02:42.1]} 12... Qc7 {[%clk 0:02:21.8]} 13. c3 {[%clk 0:02:38.1]} 13... Nxf3+
{[%clk 0:02:06.6]} 14. Qxf3 {[%clk 0:02:39]} 14... Be6 {[%clk 0:02:00.4]} 15. a5
{[%clk 0:02:25.1]} 15... d5 {[%clk 0:01:52.4]} 16. Bf1 {[%clk 0:02:21.1]} 16...
e4 {[%clk 0:01:52.6]} 17. Qe3 {[%clk 0:02:17.4]} 17... Rfd8 {[%clk 0:01:51.9]}
18. d4 {[%clk 0:02:05]} 18... cxd4 {[%clk 0:01:51]} 19. Qxd4 {[%clk 0:02:04]}
19... Qf4 {[%clk 0:01:43.2]} 20. Ra4 {[%clk 0:01:56.2]} 20... Qg5 {[%clk
0:01:42.2]} 21. Kh1 {[%clk 0:01:50.3]} 21... a6 {[%clk 0:01:21]} 22. Rb4 {[%clk
0:01:48.8]} 22... Rd7 {[%clk 0:01:20.7]} 23. Rb6 {[%clk 0:01:47.9]} 23... Rad8
{[%clk 0:01:17.3]} 24. Bc1 {[%clk 0:01:45.7]} 24... Qh5 {[%clk 0:01:16.7]} 25.
Bf4 {[%clk 0:01:41.8]} 25... Qg6 {[%clk 0:01:05.6]} 26. Bh2 {[%clk 0:01:31.9]}
26... Ne8 {[%clk 0:01:03]} 27. Qe5 {[%clk 0:01:17.5]} 27... Nd6 {[%clk
0:00:48.9]} 28. Qd4 {[%clk 0:01:09.2]} 28... Nc8 {[%clk 0:00:46.6]} 29. Rb4
{[%clk 0:01:05.5]} 29... Ne7 {[%clk 0:00:46.7]} 30. Rb6 {[%clk 0:00:55.5]} 30...
Nc6 {[%clk 0:00:46.5]} 31. Qc5 {[%clk 0:00:55.3]} 31... Ne7 {[%clk 0:00:25.6]}
32. Qb4 {[%clk 0:00:37.7]} 32... d4 {[%clk 0:00:21.6]} 33. cxd4 {[%clk
0:00:33.3]} 33... Nd5 {[%clk 0:00:21.5]} 34. Qc5 {[%clk 0:00:23.2]} 34... Nxb6
{[%clk 0:00:21.8]} 35. Qxb6 {[%clk 0:00:21.3]} 35... Qf6 {[%clk 0:00:22.1]} 36.
Kg1 {[%clk 0:00:16.4]} 36... Bd5 {[%clk 0:00:21]} 37. Be5 {[%clk 0:00:15.6]}
37... Qxb6 {[%clk 0:00:20.7]} 38. axb6 {[%clk 0:00:15.2]} 38... Rc8 {[%clk
0:00:21]} 39. Bc7 {[%clk 0:00:14.5]} 39... Bxb3 {[%clk 0:00:20.7]} 40. Rxe4
{[%clk 0:00:14.7]} 40... Bd5 {[%clk 0:00:20.4]} 41. Re5 {[%clk 0:00:14.6]} 41...
Be6 {[%clk 0:00:19.5]} 42. Re4 {[%clk 0:00:13]} 42... h6 {[%clk 0:00:14]} 43. g4
{[%clk 0:00:13.1]} 43... g6 {[%clk 0:00:13.4]} 44. Kh2 {[%clk 0:00:11.1]} 44...
Kh7 {[%clk 0:00:10.8]} 45. Kg3 {[%clk 0:00:11.2]} 45... Ra8 {[%clk 0:00:09.1]}
46. Kf4 {[%clk 0:00:09.5]} 46... a5 {[%clk 0:00:09]} 47. Bb5 {[%clk 0:00:09.9]}
47... Rd5 {[%clk 0:00:07.8]} 48. Ba4 {[%clk 0:00:10.2]} 48... Bd7 {[%clk
0:00:06.8]} 49. Bb3 {[%clk 0:00:09.6]} 49... g5+ {[%clk 0:00:06.3]} 50. Ke3
{[%clk 0:00:09.1]} 50... Be6 {[%clk 0:00:05.1]} 51. Bxd5 {[%clk 0:00:08.4]}
51... Bxd5 {[%clk 0:00:06]} 52. Re5 {[%clk 0:00:08.6]} 52... Bb3 {[%clk
0:00:05.1]} 53. d5 {[%clk 0:00:05.2]} 53... a4 {[%clk 0:00:05.4]} 54. Rf5 {[%clk
0:00:05.7]} 54... a3 {[%clk 0:00:04.8]} 55. Rxf7+ {[%clk 0:00:05.7]} 55... Kg8
{[%clk 0:00:04.8]} 56. Rd7 {[%clk 0:00:04.5]} 56... a2 {[%clk 0:00:04.9]} 57.
Be5 {[%clk 0:00:05.2]} 57... a1=Q {[%clk 0:00:03.6]} 58. Rg7+ {[%clk 0:00:05.5]}
58... Kf8 {[%clk 0:00:03.4]} 59. Bxa1 {[%clk 0:00:06.4]} 59... Rxa1 {[%clk
0:00:03.8]} 60. Rxb7 {[%clk 0:00:07.2]} 60... Bxd5 {[%clk 0:00:04]} 61. Rd7
{[%clk 0:00:06.8]} 61... Bc6 {[%clk 0:00:03.1]} 62. Rc7 {[%clk 0:00:05.6]} 62...
Bd5 {[%clk 0:00:03.3]} 63. b7 {[%clk 0:00:05.7]} 63... Bxb7 {[%clk 0:00:03.5]}
64. Rxb7 {[%clk 0:00:05.8]} 64... Ra3+ {[%clk 0:00:04.4]} 65. Ke2 {[%clk
0:00:04.9]} 65... Rxh3 {[%clk 0:00:05.3]} 66. Rh7 {[%clk 0:00:05]} 66... Rh4
{[%clk 0:00:06.2]} 67. f3 {[%clk 0:00:05]} 67... Kg8 {[%clk 0:00:06.8]} 68. Rd7
{[%clk 0:00:04.7]} 68... Rh2+ {[%clk 0:00:07.7]} 69. Ke3 {[%clk 0:00:05.1]}
69... Ra2 {[%clk 0:00:08.2]} 70. Rd6 {[%clk 0:00:05.2]} 70... Kg7 {[%clk
0:00:07.9]} 71. Rd7+ {[%clk 0:00:05.7]} 71... Kg6 {[%clk 0:00:07.9]} 72. Rd6+
{[%clk 0:00:06.2]} 72... Kg7 {[%clk 0:00:08]} 73. Rd7+ {[%clk 0:00:06.8]} 73...
Kf8 {[%clk 0:00:08.5]} 74. Rd8+ {[%clk 0:00:06.8]} 74... Ke7 {[%clk 0:00:07.4]}
75. Rh8 {[%clk 0:00:07.1]} 75... Ra6 {[%clk 0:00:07.8]} 76. Kf2 {[%clk 0:00:07]}
76... Rf6 {[%clk 0:00:06.8]} 77. Rh7+ {[%clk 0:00:07]} 77... Kf8 {[%clk
0:00:06.7]} 78. Kg3 {[%clk 0:00:06.8]} 78... Rd6 {[%clk 0:00:06.4]} 79. Rc7
{[%clk 0:00:06.2]} 79... Ke8 {[%clk 0:00:04.9]} 80. Rb7 {[%clk 0:00:06.4]} 80...
Rd7 {[%clk 0:00:04.7]} 81. Rb6 {[%clk 0:00:05.8]} 81... Rh7 {[%clk 0:00:04.6]}
82. Ra6 {[%clk 0:00:05.3]} 82... Kf8 {[%clk 0:00:04.2]} 83. f4 {[%clk
0:00:05.2]} 83... gxf4+ {[%clk 0:00:04.3]} 84. Kxf4 {[%clk 0:00:06.1]} 84...
Rf7+ {[%clk 0:00:05.2]} 85. Kg3 {[%clk 0:00:04.8]} 85... Kg7 {[%clk 0:00:06.1]}
86. Kh4 {[%clk 0:00:04.7]} 86... Rf1 {[%clk 0:00:05.5]} 87. Ra7+ {[%clk
0:00:04.5]} 87... Kg6 {[%clk 0:00:06]} 88. Ra6+ {[%clk 0:00:05]} 88... Rf6
{[%clk 0:00:05.9]} 89. Rxf6+ {[%clk 0:00:03.7]} 89... Kxf6 {[%clk 0:00:06.8]}
90. Kh5 {[%clk 0:00:03.8]} 90... Kg7 {[%clk 0:00:07.7]} 91. g5 {[%clk 0:00:04]}
91... hxg5 {[%clk 0:00:08.6]} 92. Kxg5 {[%clk 0:00:04.9]} 1/2-1/2

[Event "*** Titled Tuesday Blitz"]
[Site "Chess.com"]
[Date "2021.04.27"]
[Round "4"]
[White "chessmachine14"]
[Black "Rodchenkov_Vitalij"]
[Result "1-0"]
[WhiteElo "2266"]
[BlackElo "2047"]
[TimeControl "180+1"]
[EndTime "10:34:13 PDT"]
[Termination "chessmachine14 won by checkmate"]

1. d4 {[%clk 0:03:00.9]} 1... Nf6 {[%clk 0:02:59.6]} 2. Nc3 {[%clk 0:02:56.7]}
2... e6 {[%clk 0:02:58.6]} 3. e4 {[%clk 0:02:55.5]} 3... Bb4 {[%clk 0:02:58]} 4.
Bd3 {[%clk 0:02:54.5]} 4... Bxc3+ {[%clk 0:02:57.1]} 5. bxc3 {[%clk 0:02:54.2]}
5... d5 {[%clk 0:02:54]} 6. e5 {[%clk 0:02:45.5]} 6... Nfd7 {[%clk 0:02:51.9]}
7. Qg4 {[%clk 0:02:42.4]} 7... Kf8 {[%clk 0:02:48.3]} 8. h4 {[%clk 0:02:40.1]}
8... h5 {[%clk 0:02:47.7]} 9. Qf4 {[%clk 0:02:38.1]} 9... c5 {[%clk 0:02:41.3]}
10. Nf3 {[%clk 0:02:37.7]} 10... Nc6 {[%clk 0:02:35.3]} 11. Ng5 {[%clk
0:02:36.9]} 11... Qe7 {[%clk 0:02:26.6]} 12. Rh3 {[%clk 0:02:36.5]} 12... cxd4
{[%clk 0:02:23.6]} 13. Ba3 {[%clk 0:02:20.2]} 13... Nc5 {[%clk 0:02:14.5]} 14.
Bxc5 {[%clk 0:02:19.4]} 14... Qxc5 {[%clk 0:02:12.6]} 15. Qxf7# {[%clk
0:02:19.2]} 1-0

[Event "*** Titled Tuesday Blitz"]
[Site "Chess.com"]
[Date "2021.04.27"]
[Round "4"]
[White "Chessmasterzt"]
[Black "volkanyirik"]
[Result "1-0"]
[WhiteElo "2607"]
[BlackElo "2415"]
[TimeControl "180+1"]
[EndTime "10:34:30 PDT"]
[Termination "Chessmasterzt won by resignation"]

1. d4 {[%clk 0:03:00.9]} 1... Nf6 {[%clk 0:02:58.7]} 2. c4 {[%clk 0:03:01.1]}
2... c5 {[%clk 0:02:59.2]} 3. Nf3 {[%clk 0:03:00.2]} 3... cxd4 {[%clk
0:02:58.8]} 4. Nxd4 {[%clk 0:03:01.1]} 4... e5 {[%clk 0:02:59.3]} 5. Nb5 {[%clk
0:02:59.3]} 5... d5 {[%clk 0:02:59.6]} 6. cxd5 {[%clk 0:03:00.2]} 6... Bc5
{[%clk 0:02:59.8]} 7. N5c3 {[%clk 0:02:59.9]} 7... e4 {[%clk 0:02:59.9]} 8. Nxe4
{[%clk 0:02:57.7]} 8... O-O {[%clk 0:02:40.7]} 9. Nxc5 {[%clk 0:02:48.4]} 9...
Qa5+ {[%clk 0:02:40.1]} 10. Nc3 {[%clk 0:02:46.9]} 10... Qxc5 {[%clk 0:02:39.8]}
11. Be3 {[%clk 0:02:46.4]} 11... Qb4 {[%clk 0:02:38.4]} 12. Qb3 {[%clk
0:02:45.3]} 12... Qa5 {[%clk 0:02:36.7]} 13. Bd4 {[%clk 0:02:39.2]} 13... Nbd7
{[%clk 0:02:33.5]} 14. g3 {[%clk 0:02:33.2]} 14... Nc5 {[%clk 0:02:33.1]} 15.
Qb5 {[%clk 0:02:27.1]} 15... Qxb5 {[%clk 0:02:30.8]} 16. Nxb5 {[%clk 0:02:28]}
16... Nce4 {[%clk 0:02:24.2]} 17. f3 {[%clk 0:02:07.8]} 1-0